bitfinex-derivatives/quotes_BTCF0:USTF0_20251103
["timestamp","ask_amount","ask_price","bid_price","bid_amount"]
[1762150554667,0.056,107460.0,107450.0,0.43723142]
[1762150556461,0.06,107460.0,107450.0,0.43723142]
[1762150556670,0.064,107460.0,107450.0,0.3228]
[1762150557266,0.06,107460.0,107450.0,0.3228]
[1762150557473,0.056,107450.0,107440.0,0.0670006]
[1762150557773,0.056,107440.0,107430.0,0.3898006]
[1762150557963,0.056,107440.0,107430.0,0.8028939]
[1762150558158,0.056,107450.0,107430.0,0.7098006]
[1762150558368,0.056,107450.0,107430.0,0.802889]
[1762150558568,0.056,107450.0,107440.0,0.0670006]
[1762150558766,0.01263,107450.0,107440.0,0.4600852]
[1762150558974,0.011,107460.0,107450.0,0.093076]
[1762150559167,0.011,107460.0,107450.0,0.51968246]
[1762150559361,0.011,107460.0,107450.0,0.61275846]
[1762150559562,0.007,107460.0,107450.0,0.93551846]
[1762150559767,0.05598,107470.0,107450.0,1.00251906]
[1762150559968,0.056,107460.0,107450.0,0.62944306]
[1762150560177,0.06,107460.0,107450.0,0.3897606]
[1762150560476,0.067,107460.0,107450.0,0.3897606]
[1762150561275,0.067,107460.0,107450.0,0.4997606]
[1762150561476,0.067,107460.0,107450.0,0.3897606]
[1762150561775,0.067,107460.0,107450.0,0.32276]
[1762150561976,0.067,107460.0,107450.0,0.40649084]
[1762150562575,0.067,107460.0,107450.0,0.6292923]
[1762150563274,0.067,107460.0,107450.0,0.32276]
[1762150564575,0.056,107450.0,107440.0,0.31602118]
[1762150564774,0.056,107450.0,107440.0,0.39909872]
[1762150565174,0.056,107450.0,107440.0,0.52909872]
[1762150565375,0.056,107450.0,107440.0,0.39909872]
[1762150565776,0.056,107450.0,107440.0,0.84186588]
[1762150565976,0.056,107450.0,107440.0,1.02186588]
[1762150566380,0.062,107450.0,107440.0,1.02186588]
[1762150566883,0.04044,107450.0,107440.0,1.02186588]
[1762150568176,0.04044,107450.0,107440.0,0.76878118]
[1762150568375,0.062,107450.0,107440.0,0.06684984]
[1762150568578,0.062,107450.0,107420.0,0.3301933]
[1762150568579,0.056,107440.0,107430.0,0.40645084]
[1762150568885,0.056,107440.0,107430.0,0.11683034]
[1762150569085,0.056,107440.0,107430.0,0.52304827]
[1762150569286,0.056,107440.0,107430.0,0.40621793]
[1762150569783,0.057,107440.0,107430.0,0.40621793]
[1762150570086,0.058,107440.0,107430.0,0.40621793]
[1762150570581,0.002,107440.0,107430.0,0.97549576]
[1762150570786,0.056,107460.0,107440.0,0.093084]
[1762150570985,0.056,107460.0,107450.0,0.3064802]
[1762150571685,0.056,107460.0,107450.0,0.3995562]
[1762150571879,0.05598,107470.0,107450.0,0.9922762]
[1762150572283,0.05598,107470.0,107460.0,0.06679774]
[1762150572688,0.05598,107470.0,107460.0,0.07590925]
[1762150573388,0.01861,107470.0,107460.0,0.4364802]
[1762150573688,0.01861,107470.0,107460.0,0.3064802]
[1762150573888,0.01861,107470.0,107460.0,0.5864802]
[1762150574191,0.02661,107470.0,107460.0,0.3064802]
[1762150574488,0.06998,107470.0,107460.0,0.06679774]
[1762150577081,0.06998,107470.0,107460.0,0.31679774]
[1762150578000,0.06998,107470.0,107460.0,0.06679774]
[1762150578194,0.02661,107470.0,107460.0,0.6495476]
[1762150578397,0.014,107470.0,107460.0,0.6495476]
[1762150579098,0.014,107470.0,107460.0,0.5564802]
[1762150579296,0.02739,107470.0,107460.0,0.3064802]
[1762150579498,0.014,107470.0,107460.0,0.6595476]
[1762150579795,0.014,107470.0,107460.0,0.32679774]
[1762150580001,0.04968,107470.0,107460.0,0.06679774]
[1762150580200,0.07214,107470.0,107460.0,0.06679774]
[1762150582198,0.06314,107470.0,107460.0,0.06679774]
[1762150582400,0.06314,107470.0,107460.0,0.07179774]
[1762150582897,0.06314,107470.0,107460.0,0.07379774]
[1762150582898,0.05814,107470.0,107460.0,0.07379774]
[1762150583199,0.05814,107470.0,107460.0,0.07679774]
[1762150583598,0.05738,107490.0,107470.0,0.0930587]
[1762150583792,0.05738,107490.0,107480.0,0.23968246]
[1762150584498,0.01339,107480.0,107470.0,0.62923265]
[1762150584805,0.03568,107480.0,107470.0,0.62923265]
[1762150585298,0.05814,107480.0,107470.0,0.62923265]
[1762150585499,0.05814,107480.0,107470.0,0.63123265]
[1762150586204,0.05814,107480.0,107470.0,0.62923265]
[1762150586399,0.05814,107480.0,107470.0,0.63423265]
[1762150586600,0.05814,107480.0,107470.0,0.63623265]
[1762150586801,0.05814,107480.0,107470.0,0.39655019]
[1762150589298,0.05814,107480.0,107470.0,0.30855265]
[1762150589499,0.05914,107480.0,107470.0,0.30855265]
[1762150589699,0.06014,107480.0,107470.0,0.30655265]
[1762150591602,0.06009,107480.0,107470.0,0.30655265]
[1762150592512,0.01539,107480.0,107470.0,0.30655265]
[1762150593016,0.03814,107480.0,107470.0,0.30655265]
[1762150593315,0.06055,107480.0,107470.0,0.43655265]
[1762150593518,0.06055,107480.0,107470.0,0.52961135]
[1762150594023,0.06066,107480.0,107470.0,0.30655265]
[1762150594217,0.06066,107480.0,107470.0,0.06687019]
[1762150594417,0.06066,107480.0,107470.0,0.30655265]
[1762150595315,0.06066,107480.0,107470.0,0.06687019]
[1762150595520,0.06066,107480.0,107470.0,0.30655265]
[1762150596220,0.06066,107480.0,107470.0,0.06687019]
[1762150596721,0.06066,107480.0,107470.0,0.08349718]
[1762150597019,0.03625,107470.0,107460.0,0.76264998]
[1762150597322,0.03625,107470.0,107460.0,0.64581964]
[1762150597825,0.05866,107470.0,107460.0,0.64581964]
[1762150598015,0.05866,107470.0,107460.0,0.99227303]
[1762150598216,0.05866,107470.0,107460.0,0.99427303]
[1762150599022,0.05866,107470.0,107460.0,0.63120563]
[1762150601925,0.05866,107470.0,107460.0,0.6811528]
[1762150606327,0.05866,107470.0,107460.0,0.8111528]
[1762150606523,0.05816,107480.0,107460.0,0.9042155]
[1762150606732,0.05816,107480.0,107470.0,0.32330293]
[1762150608529,0.05916,107480.0,107470.0,0.32330293]
[1762150608829,0.05916,107480.0,107460.0,0.20045081]
[1762150608830,0.04466,107470.0,107460.0,0.20045081]
[1762150609036,0.05792,107470.0,107460.0,0.11683034]
[1762150609222,0.05792,107460.0,107450.0,0.6883713]
[1762150609623,0.03633,107460.0,107450.0,0.6883713]
[1762150609823,0.01326,107460.0,107450.0,0.7814473]
[1762150610018,0.05792,107470.0,107450.0,1.1114473]
[1762150610224,0.05792,107470.0,107460.0,0.32332346]
[1762150610430,0.05792,107470.0,107460.0,0.32532346]
[1762150610630,0.05916,107480.0,107460.0,0.67474976]
[1762150610930,0.05916,107480.0,107470.0,0.73894426]
[1762150611523,0.05816,107480.0,107470.0,0.65530116]
[1762150611723,0.05816,107480.0,107470.0,1.02894426]
[1762150612028,0.001,107480.0,107470.0,1.02894426]
[1762150612228,0.002,107480.0,107470.0,1.02894426]
[1762150613734,0.002,107480.0,107470.0,0.94530116]
[1762150614036,0.05792,107500.0,107480.0,0.0930477]
[1762150614237,0.05792,107500.0,107490.0,0.62916576]
[1762150614435,0.05792,107500.0,107490.0,0.83232013]
[1762150614932,0.01326,107500.0,107490.0,0.53232013]
[1762150615132,0.05792,107500.0,107490.0,0.54905096]
[1762150615434,0.05792,107500.0,107490.0,0.38946312]
[1762150615633,0.05792,107500.0,107490.0,0.53229995]
[1762150616331,0.05792,107500.0,107490.0,0.38946312]
[1762150616523,0.05792,107500.0,107490.0,0.32256]
[1762150617135,0.05792,107500.0,107490.0,0.32456]
[1762150617837,0.05792,107500.0,107490.0,0.32256]
[1762150618130,0.05792,107500.0,107490.0,0.32656]
[1762150618329,0.05792,107500.0,107490.0,0.39346312]
[1762150618525,0.05792,107500.0,107490.0,0.39146312]
[1762150618732,0.05792,107500.0,107490.0,0.39446312]
[1762150619330,0.05792,107500.0,107490.0,0.07190312]
[1762150620235,0.05792,107500.0,107490.0,0.06690312]
[1762150620434,0.05792,107500.0,107490.0,0.06890312]
[1762150620630,0.05792,107500.0,107490.0,0.07090312]
[1762150621030,0.05792,107490.0,107480.0,0.15055725]
[1762150621226,0.05792,107490.0,107480.0,0.06690312]
[1762150621538,0.05792,107480.0,107470.0,0.58218717]
[1762150621731,0.01326,107480.0,107470.0,0.67524577]
[1762150621933,0.03633,107480.0,107470.0,0.58218717]
[1762150622131,0.05792,107480.0,107470.0,0.43935034]
[1762150622327,0.05792,107480.0,107470.0,0.66797852]
[1762150622732,0.05792,107480.0,107470.0,0.4061649]
[1762150622939,0.05792,107480.0,107470.0,0.52047899]
[1762150623530,0.03633,107490.0,107470.0,0.85785118]
[1762150623725,0.05792,107490.0,107480.0,0.29555265]
[1762150623932,0.05792,107490.0,107480.0,0.36062818]
[1762150624131,0.05792,107490.0,107480.0,0.44427308]
[1762150624542,0.01326,107490.0,107480.0,0.44427308]
[1762150624732,0.01326,107490.0,107480.0,0.31227308]
[1762150624933,0.03633,107490.0,107480.0,0.31227308]
[1762150625133,0.05792,107490.0,107480.0,0.31427308]
[1762150625539,0.05792,107490.0,107480.0,0.31627308]
[1762150626744,0.05792,107490.0,107480.0,0.31427308]
[1762150627045,0.05792,107490.0,107480.0,0.44727308]
[1762150627645,0.05792,107490.0,107480.0,0.31727308]
[1762150627842,0.05792,107490.0,107480.0,0.31427308]
[1762150634339,0.05792,107490.0,107480.0,0.22851775]
[1762150634754,0.05792,107490.0,107480.0,0.35851775]
[1762150634940,0.01326,107490.0,107480.0,0.45156785]
[1762150635249,0.06875,107510.0,107480.0,0.89384479]
[1762150635453,0.06875,107510.0,107500.0,0.20980511]
[1762150636645,0.06875,107510.0,107500.0,0.21903098]
[1762150637150,0.01093,107510.0,107500.0,0.61206378]
[1762150637347,0.01093,107510.0,107500.0,0.45209872]
[1762150637547,0.01393,107510.0,107500.0,0.61206378]
[1762150638053,0.01593,107510.0,107500.0,0.15209872]
[1762150638238,0.07369,107510.0,107500.0,0.15209872]
[1762150638443,0.05208,107510.0,107500.0,0.15209872]
[1762150638942,0.05208,107510.0,107500.0,0.56513152]
[1762150639447,0.02913,107510.0,107500.0,0.56513152]
[1762150640240,0.02913,107510.0,107500.0,0.47209872]
[1762150641351,0.05208,107510.0,107500.0,0.47209872]
[1762150641552,0.02913,107510.0,107500.0,0.56513142]
[1762150642255,0.02913,107510.0,107500.0,0.63206368]
[1762150642955,0.05208,107510.0,107500.0,0.34903098]
[1762150643154,0.07369,107510.0,107500.0,0.07615813]
[1762150643355,0.07369,107510.0,107500.0,0.21903098]
[1762150643952,0.06276,107510.0,107500.0,0.21903098]
[1762150644655,0.05976,107510.0,107500.0,0.22403098]
[1762150645052,0.05776,107510.0,107500.0,0.07393226]
[1762150645244,0.05776,107510.0,107500.0,0.39637226]
[1762150646156,0.05776,107510.0,107500.0,0.07393226]
[1762150647463,0.05776,107510.0,107500.0,0.21680511]
[1762150651060,0.05776,107510.0,107500.0,0.30983791]
[1762150651249,0.02391,107520.0,107500.0,0.56983351]
[1762150651457,0.0698,107520.0,107510.0,0.46527285]
[1762150653552,0.0698,107520.0,107510.0,0.46727285]
[1762150654464,0.0698,107520.0,107510.0,0.55286748]
[1762150654657,0.0698,107520.0,107510.0,0.70286748]
[1762150654963,0.0698,107520.0,107510.0,0.55286748]
[1762150655959,0.0698,107520.0,107510.0,0.74979974]
[1762150656162,0.0698,107520.0,107510.0,0.61979974]
[1762150656361,0.0698,107520.0,107510.0,0.55286748]
[1762150657860,0.0698,107520.0,107510.0,0.3244]
[1762150658063,0.0698,107520.0,107510.0,0.55286748]
[1762150658854,0.0698,107520.0,107510.0,0.43863374]
[1762150659460,0.0698,107520.0,107510.0,0.55286748]
[1762150659966,0.0698,107520.0,107510.0,0.55086748]
[1762150660162,0.0698,107520.0,107510.0,0.55286748]
[1762150661962,0.0698,107520.0,107510.0,0.55086748]
[1762150662163,0.0698,107520.0,107510.0,0.55286748]
[1762150662565,0.0698,107520.0,107510.0,0.61979974]
[1762150663168,0.0698,107520.0,107510.0,0.72979974]
[1762150663362,0.0698,107520.0,107510.0,0.82282384]
[1762150664468,0.02391,107520.0,107510.0,1.00282384]
[1762150664665,0.05909,107540.0,107520.0,0.0930155]
[1762150664868,0.08215864,107540.0,107530.0,0.55078748]
[1762150665071,0.08215864,107540.0,107530.0,0.80078748]
[1762150665368,0.05909,107540.0,107530.0,0.89379428]
[1762150665560,0.05606,107550.0,107530.0,0.89379428]
[1762150665766,0.05606,107550.0,107540.0,0.22846748]
[1762150665767,0.07912999,107550.0,107540.0,0.22846748]
[1762150667273,0.08312999,107550.0,107540.0,0.22846748]
[1762150667469,0.02706999,107550.0,107540.0,0.43569942]
[1762150667671,0.004,107550.0,107540.0,0.73569942]
[1762150667868,0.05606,107570.0,107550.0,0.0929848]
[1762150668063,0.02306335,107570.0,107560.0,0.75800212]
[1762150668378,0.05790335,107570.0,107560.0,0.55078748]
[1762150668563,0.07922335,107570.0,107560.0,0.55078748]
[1762150668770,0.07922335,107570.0,107560.0,0.56015765]
[1762150668969,0.08522335,107570.0,107560.0,0.56015765]
[1762150669176,0.08522335,107570.0,107560.0,0.67015765]
[1762150669476,0.06490335,107570.0,107560.0,0.56015765]
[1762150669778,0.05990335,107570.0,107560.0,0.44169017]
[1762150669971,0.05990335,107570.0,107560.0,0.56015765]
[1762150670368,0.03684,107570.0,107560.0,0.55797822]
[1762150670568,0.03684,107570.0,107560.0,0.79797822]
[1762150670877,0.05816,107570.0,107560.0,0.79797822]
[1762150671279,0.01509,107570.0,107560.0,0.78097554]
[1762150671473,0.002,107570.0,107560.0,0.71433332]
[1762150671667,0.01509,107570.0,107560.0,0.89095912]
[1762150672277,0.03684,107570.0,107560.0,0.85697647]
[1762150672580,0.05816,107570.0,107560.0,0.47433332]
[1762150673275,0.01509,107570.0,107560.0,0.47433332]
[1762150673479,0.03684,107570.0,107560.0,0.58433332]
[1762150673666,0.01509,107570.0,107560.0,0.84731422]
[1762150674069,0.002,107570.0,107560.0,0.84731422]
[1762150674266,0.002,107570.0,107560.0,0.98995737]
[1762150674470,0.002,107570.0,107560.0,0.94373906]
[1762150675073,0.05616,107590.0,107570.0,0.0929713]
[1762150675381,0.05616,107590.0,107580.0,0.56126799]
[1762150676277,0.05616,107590.0,107580.0,0.77423159]
[1762150676466,0.01309,107590.0,107580.0,0.68126799]
[1762150676777,0.05616,107590.0,107580.0,0.56326799]
[1762150677177,0.05616,107590.0,107580.0,0.3242]
[1762150678065,0.05616,107590.0,107580.0,0.002]
[1762150679374,0.05616,107590.0,107580.0,0.24106799]
[1762150681079,0.65616,107590.0,107580.0,0.002]
[1762150682173,0.05616,107590.0,107580.0,0.24106799]
[1762150682771,0.05616,107590.0,107580.0,0.002]
[1762150683984,0.01309,107590.0,107580.0,0.37106799]
[1762150684176,0.01309,107590.0,107580.0,0.44403159]
[1762150684381,0.05616,107600.0,107580.0,0.66403159]
[1762150684685,0.05616,107600.0,107590.0,0.56118799]
[1762150685790,0.05616,107600.0,107590.0,0.56218799]
[1762150686082,0.05616,107600.0,107590.0,0.32312]
[1762150687581,0.05816,107600.0,107590.0,0.56218799]
[1762150690391,0.05816,107600.0,107590.0,0.43719415]
[1762150692387,0.05816,107600.0,107590.0,0.32312]
[1762150693593,0.05816,107600.0,107590.0,0.001]
[1762150695793,0.05673,107570.0,107560.0,0.40796793]
[1762150695997,0.05673,107570.0,107560.0,0.66344016]
[1762150696293,0.05673,107570.0,107560.0,0.73000793]
[1762150696597,0.05673,107570.0,107560.0,0.63702703]
[1762150696795,0.03548,107570.0,107560.0,0.63702703]
[1762150697000,0.03506,107580.0,107560.0,0.99000803]
[1762150697295,0.05631,107580.0,107570.0,0.23904909]
[1762150698794,0.05631,107580.0,107570.0,0.24304909]
[1762150699281,0.05631,107580.0,107570.0,0.30961686]
[1762150699680,0.05631,107580.0,107570.0,0.31261686]
[1762150702896,0.05631,107580.0,107570.0,0.24604909]
[1762150703197,0.05631,107580.0,107570.0,0.32969399]
[1762150703695,0.05631,107580.0,107570.0,0.0906449]
[1762150704194,0.05631,107580.0,107570.0,0.39592513]
[1762150704490,0.65631,107580.0,107570.0,0.39592513]
[1762150705197,0.65631,107580.0,107570.0,0.07388513]
[1762150705901,0.05631,107580.0,107570.0,0.31293422]
[1762150707292,0.05631,107580.0,107570.0,0.07388513]
[1762150708701,0.05631,107580.0,107570.0,0.007]
[1762150709502,0.05631,107580.0,107570.0,0.24604909]
[1762150709902,0.05631,107580.0,107570.0,0.3129318]
[1762150710691,0.05631,107580.0,107570.0,0.07388271]
[1762150712800,0.05631,107580.0,107570.0,0.3129318]
[1762150713999,0.05631,107580.0,107570.0,0.07388271]
[1762150714404,0.05631,107580.0,107570.0,0.18800723]
[1762150716416,0.05631,107580.0,107570.0,0.12112452]
[1762150716911,0.05631,107580.0,107570.0,0.007]
[1762150717099,0.05631,107580.0,107570.0,0.07389472]
[1762150717412,0.05631,107580.0,107570.0,0.07389703]
[1762150717609,0.05631,107580.0,107570.0,0.0906449]
[1762150718906,0.05631,107580.0,107570.0,0.007]
[1762150719207,0.77043452,107580.0,107570.0,0.0556449]
[1762150719506,0.77043452,107580.0,107570.0,0.03190545]
[1762150720214,0.04258,107580.0,107570.0,0.20299997]
[1762150720406,0.04258,107580.0,107570.0,0.17109452]
[1762150720708,0.01373,107590.0,107560.0,0.17109452]
[1762150720709,0.04403,107570.0,107560.0,0.17109452]
[1762150721104,0.05794,107570.0,107560.0,0.05697]
[1762150721713,0.05794,107570.0,107560.0,0.04434]
[1762150721912,0.03903,107560.0,107550.0,0.17109452]
[1762150722421,0.04403,107570.0,107560.0,0.05697]
[1762150722713,0.0217,107570.0,107560.0,0.26407562]
[1762150723117,0.04403,107570.0,107560.0,0.26707562]
[1762150723324,0.04403,107570.0,107560.0,0.17409452]
[1762150724528,0.3798,107590.0,107580.0,0.04434]
[1762150725725,0.3828,107590.0,107580.0,0.05793]
[1762150727229,0.3828,107590.0,107580.0,0.04434]
[1762150727930,0.05436,107570.0,107560.0,0.16187034]
[1762150728231,0.05436,107570.0,107560.0,0.04504]
[1762150728527,0.05436,107570.0,107560.0,0.12866916]
[1762150729026,0.05436,107570.0,107560.0,0.04804]
[1762150729428,0.05436,107570.0,107560.0,0.05104]
[1762150729729,0.05436,107570.0,107560.0,0.11792117]
[1762150729928,0.05436,107570.0,107560.0,0.13151117]
[1762150730129,0.04545,107570.0,107560.0,0.13151117]
[1762150731127,0.04545,107570.0,107560.0,0.11792117]
[1762150733129,1.31401452,107570.0,107560.0,0.07288117]
[1762150733332,1.32319428,107570.0,107560.0,0.006]
[1762150734433,1.43750352,107570.0,107560.0,0.006]
[1762150734833,1.44350352,107570.0,107560.0,0.003]
[1762150735734,0.04545,107560.0,107550.0,0.06688117]
[1762150735930,0.28697376,107560.0,107550.0,0.06688117]
[1762150736131,0.51941376,107560.0,107550.0,0.06688117]
[1762150736326,0.28697376,107560.0,107550.0,0.06688117]
[1762150736932,0.28997376,107560.0,107550.0,0.06688117]
[1762150737434,0.28997376,107560.0,107550.0,0.08868117]
[1762150737736,0.28997376,107560.0,107550.0,0.06688117]
[1762150737927,1.12241376,107560.0,107550.0,0.06688117]
[1762150738126,0.05918,107550.0,107540.0,0.06688117]
[1762150738328,0.49543688,107550.0,107540.0,0.06688117]
[1762150739326,0.49543688,107550.0,107540.0,0.06888117]
[1762150739834,0.49543688,107550.0,107540.0,0.002]
[1762150740239,0.49543688,107550.0,107540.0,0.06888117]
[1762150740437,1.09543688,107550.0,107540.0,0.06888117]
[1762150740637,0.04545,107540.0,107530.0,0.06688117]
[1762150740941,0.28079376,107540.0,107530.0,0.06688117]
[1762150741140,0.51327376,107540.0,107530.0,0.06688117]
[1762150741336,1.11327376,107540.0,107520.0,0.08362916]
[1762150741541,0.43625688,107530.0,107510.0,0.21143604]
[1762150741739,0.11421688,107520.0,107510.0,0.14225916]
[1762150741945,0.22843376,107520.0,107510.0,0.09721916]
[1762150742132,0.22843376,107520.0,107510.0,0.11901916]
[1762150742333,0.22843376,107520.0,107510.0,0.03539]
[1762150742530,1.05795376,107520.0,107500.0,0.14237966]
[1762150742734,0.43629688,107510.0,107500.0,0.14237966]
[1762150742935,0.43629688,107510.0,107500.0,0.0587505]
[1762150744345,0.44229688,107510.0,107500.0,0.0587505]
[1762150744548,0.44229688,107510.0,107500.0,0.14237966]
[1762150744845,0.44229688,107510.0,107500.0,0.11913966]
[1762150745039,0.44229688,107510.0,107500.0,0.14237966]
[1762150745241,0.67885688,107510.0,107500.0,0.0001205]
[1762150745843,0.44629688,107510.0,107500.0,0.0137105]
[1762150746038,0.44629688,107510.0,107500.0,0.0355105]
[1762150747244,0.44629688,107510.0,107500.0,0.0587505]
[1762150748040,1.39307376,107510.0,107500.0,0.0001205]
[1762150749444,1.39307376,107510.0,107480.0,0.09721916]
[1762150749644,0.33208,107510.0,107480.0,0.09721916]
[1762150749945,0.11421688,107490.0,107480.0,0.14225916]
[1762150750137,0.43633688,107490.0,107480.0,0.14225916]
[1762150750331,0.43633688,107490.0,107480.0,0.05863]
[1762150750535,0.4364484,107490.0,107480.0,0.05863]
[1762150751443,0.4364484,107490.0,107470.0,0.09721916]
[1762150751644,0.11421688,107480.0,107470.0,0.11901916]
[1762150751845,0.32523152,107490.0,107480.0,0.03539]
[1762150752044,0.4414484,107490.0,107480.0,0.05863]
[1762150752747,0.6720484,107490.0,107480.0,0.03539]
[1762150752946,0.78626528,107490.0,107470.0,0.14325916]
[1762150753146,0.22843376,107480.0,107470.0,0.05963]
[1762150753347,0.11421688,107480.0,107470.0,0.14325916]
[1762150753548,0.11421688,107480.0,107470.0,0.14225916]
[1762150754049,0.11421688,107480.0,107470.0,0.05863]
[1762150754252,0.11421688,107480.0,107470.0,0.14225916]
[1762150754450,0.11521688,107480.0,107470.0,0.05863]
[1762150755342,0.11521688,107480.0,107470.0,0.05963]
[1762150755841,0.001,107480.0,107470.0,0.17384688]
[1762150756043,0.25556,107480.0,107470.0,0.17384688]
[1762150756239,0.25556,107480.0,107470.0,0.25747604]
[1762150757842,0.001,107480.0,107470.0,0.46475232]
[1762150758055,0.001,107480.0,107470.0,0.28806376]
[1762150758249,0.001,107480.0,107470.0,0.17384688]
[1762150758449,0.001,107480.0,107470.0,0.37169292]
[1762150759256,0.001,107480.0,107470.0,0.14325916]
[1762150759448,0.11521688,107480.0,107470.0,0.25747604]
[1762150759649,0.11521688,107480.0,107470.0,0.17384688]
[1762150759849,0.11521688,107480.0,107470.0,0.05963]
[1762150760454,0.11521688,107480.0,107470.0,0.14325916]
[1762150760844,0.11521688,107480.0,107470.0,0.25747604]
[1762150761053,0.11521688,107480.0,107470.0,0.14325916]
[1762150761558,0.11521688,107480.0,107470.0,0.25747604]
[1762150762265,0.001,107480.0,107470.0,0.25747604]
[1762150762555,0.001,107480.0,107470.0,0.14325916]
[1762150763556,0.001,107480.0,107470.0,0.05963]
[1762150765946,0.005,107480.0,107470.0,0.05863]
[1762150767356,0.008,107480.0,107470.0,0.05863]
[1762150774360,0.38355078,107480.0,107470.0,0.05863]
[1762150774849,0.15095078,107480.0,107470.0,0.05863]
[1762150775460,1.65095078,107480.0,107470.0,0.05863]
[1762150775855,1.508,107480.0,107470.0,0.05863]
[1762150778557,1.508,107480.0,107470.0,0.20158078]
[1762150778558,0.008,107480.0,107470.0,0.20158078]
[1762150779364,0.008,107480.0,107470.0,0.05863]
[1762150782471,0.008,107480.0,107470.0,0.17298692]
[1762150783757,0.008,107480.0,107470.0,0.28734384]
[1762150783958,0.008,107480.0,107470.0,0.17298692]
[1762150784872,0.12235692,107480.0,107470.0,0.17298692]
[1762150785059,0.12235692,107480.0,107470.0,0.05863]
[1762150786675,0.12235692,107480.0,107470.0,0.17298692]
[1762150787171,0.008,107480.0,107470.0,0.17298692]
[1762150788372,0.00011152,107490.0,107480.0,0.05712]
[1762150788571,0.00673152,107490.0,107480.0,0.05712]
[1762150788772,0.00673152,107490.0,107480.0,0.17147692]
[1762150789972,0.01073152,107490.0,107480.0,0.17147692]
[1762150790175,0.13208844,107490.0,107480.0,0.17147692]
[1762150790377,0.13870844,107490.0,107480.0,0.17147692]
[1762150791981,0.12546844,107490.0,107480.0,0.17147692]
[1762150792275,0.01111152,107490.0,107480.0,0.17147692]
[1762150792479,0.12546844,107490.0,107480.0,0.17147692]
[1762150793179,0.01111152,107490.0,107480.0,0.17147692]
[1762150793977,0.12546844,107490.0,107480.0,0.17147692]
[1762150794175,0.14942401,107490.0,107480.0,0.17147692]
[1762150794373,0.03506709,107490.0,107480.0,0.05712]
[1762150794568,0.04074459,107490.0,107480.0,0.05712]
[1762150794975,0.04736459,107490.0,107480.0,0.03607]
[1762150795169,0.01324,107480.0,107470.0,0.03602]
[1762150795370,0.0528,107470.0,107460.0,0.11017999]
[1762150795682,0.16724992,107470.0,107460.0,0.04348]
[1762150795870,0.16724992,107470.0,107460.0,0.05712]
[1762150796380,0.16724992,107470.0,107460.0,0.04348]
[1762150798082,0.1765629,107470.0,107460.0,0.05712]
[1762150799484,0.05917,107460.0,107450.0,0.12376999]
[1762150799673,0.4956615,107460.0,107450.0,0.12376999]
[1762150799979,0.02319,107440.0,107430.0,0.1061434]
[1762150800281,0.48314797,107440.0,107430.0,0.1408334]
[1762150800472,0.36881647,107440.0,107430.0,0.1408334]
[1762150800976,0.36481647,107440.0,107430.0,0.05720424]
[1762150801280,0.32231647,107440.0,107430.0,0.05720424]
[1762150801481,0.00011647,107440.0,107430.0,0.05720424]
[1762150801679,0.00011647,107440.0,107430.0,0.29703436]
[1762150802278,0.00111647,107440.0,107430.0,0.29703436]
[1762150802685,0.00111647,107440.0,107430.0,0.05720424]
[1762150802875,0.04761647,107440.0,107430.0,0.05720424]
[1762150804581,0.00111647,107440.0,107430.0,0.29703436]
[1762150805276,0.00111647,107440.0,107430.0,0.39012866]
[1762150805482,0.05576537,107470.0,107460.0,0.05712]
[1762150805683,0.27084537,107470.0,107460.0,0.05712]
[1762150806181,0.21508,107470.0,107460.0,0.05712]
[1762150806385,0.3687,107490.0,107480.0,0.04348]
[1762150806587,0.39216483,107490.0,107480.0,0.04348]
[1762150807480,0.3687,107490.0,107480.0,0.04348]
[1762150807673,0.005,107490.0,107480.0,0.04348]
[1762150808675,0.02819,107490.0,107480.0,0.04348]
[1762150808876,0.0515,107490.0,107480.0,0.04348]
[1762150809089,0.0605,107490.0,107480.0,0.04348]
[1762150809289,0.3827,107490.0,107480.0,0.04348]
[1762150809680,0.3737,107490.0,107480.0,0.04348]
[1762150809982,0.3797,107490.0,107480.0,0.04348]
[1762150810178,0.3332,107490.0,107480.0,0.04348]
[1762150810687,0.3322,107490.0,107480.0,0.04348]
[1762150810882,0.3787,107490.0,107480.0,0.04348]
[1762150811486,0.35539,107490.0,107480.0,0.04348]
[1762150811672,0.3322,107490.0,107480.0,0.04348]
[1762150811877,0.01,107490.0,107480.0,0.04348]
[1762150812378,0.01,107490.0,107480.0,0.28331012]
[1762150812574,0.01,107490.0,107480.0,0.37636112]
[1762150812778,0.09361045,107530.0,107480.0,0.37636112]
[1762150812779,0.18703045,107530.0,107520.0,0.05712]
[1762150813083,0.09484294,107530.0,107520.0,0.05712]
[1762150813385,0.41700294,107530.0,107520.0,0.02243]
[1762150813688,0.0465,107510.0,107500.0,0.05712]
[1762150815786,0.0505,107510.0,107500.0,0.05712]
[1762150816284,0.0525,107510.0,107500.0,0.05712]
[1762150820393,0.0046,107510.0,107500.0,0.05712]
[1762150821697,0.003,107510.0,107500.0,0.42695012]
[1762150821886,0.37615925,107530.0,107520.0,0.05814]
[1762150822197,0.39956245,107530.0,107520.0,0.05814]
[1762150822896,0.3904632,107530.0,107520.0,0.05814]
[1762150823497,0.3934632,107530.0,107520.0,0.05814]
[1762150823886,0.0713032,107530.0,107520.0,0.05814]
[1762150824591,0.0479,107530.0,107520.0,0.05814]
[1762150824992,0.0529,107530.0,107520.0,0.05814]
[1762150825189,0.06557,107530.0,107520.0,0.04428]
[1762150825394,0.0529,107530.0,107520.0,0.05814]
[1762150825893,0.0479,107530.0,107520.0,0.05814]
[1762150827197,0.30099012,107530.0,107520.0,0.04428]
[1762150827591,0.06116,107530.0,107520.0,0.04428]
[1762150827989,0.06116,107530.0,107520.0,0.0569]
[1762150828698,0.0479,107530.0,107520.0,0.0569]
[1762150830306,0.05522,107530.0,107520.0,0.0569]
[1762150831103,0.0479,107530.0,107520.0,0.0569]
[1762150832000,0.05522,107530.0,107520.0,0.02173]
[1762150832308,0.05522,107530.0,107520.0,0.04395]
[1762150833301,0.05522,107530.0,107520.0,0.05657]
[1762150833499,0.0489,107530.0,107520.0,0.05657]
[1762150834098,0.37394,107530.0,107520.0,0.05657]